bitfinex/quotes_SOLUSD_20220118
["timestamp","ask_amount","ask_price","bid_price","bid_amount"]
[1642490775945,14.04449229,139.78,139.74,2.03279987]
[1642490776342,0.25,139.77,139.74,2.03279987]
[1642490776544,6.06439994,139.76,139.74,2.03279987]
[1642490776745,6.06439994,139.76,139.73,2.03279987]
[1642490776942,0.25,139.75,139.73,2.03279987]
[1642490777344,38.01160436,139.75,139.73,2.03279987]
[1642490777746,3.03219997,139.74,139.73,2.03279987]
[1642490777943,24.7761,139.78,139.73,2.03279987]
[1642490778146,24.7761,139.78,139.71,2.03279987]
[1642490778545,0.25,139.77,139.71,2.03279987]
[1642490778745,36.7532506,139.77,139.71,2.03279987]
[1642490779145,36.7532506,139.77,139.73,2.03279987]
[1642490779744,47.4904506,139.77,139.73,2.03279987]
[1642490779943,47.2404506,139.77,139.73,2.03279987]
[1642490780145,36.5032506,139.77,139.71,2.03279987]
[1642490781248,0.25,139.76,139.71,2.03279987]
[1642490782347,36.5032506,139.77,139.71,2.03279987]
[1642490782746,0.25,139.76,139.71,2.03279987]
[1642490783448,0.25,139.76,139.72,2.03279987]
[1642490784147,36.5032506,139.77,139.72,2.03279987]
[1642490785450,0.25,139.76,139.72,2.03279987]
[1642490788951,3.112,139.76,139.72,2.03279987]
[1642490789552,13.8499,139.76,139.72,2.03279987]
[1642490789951,13.8499,139.76,139.71,2.03279987]
[1642490791354,13.8499,139.76,139.7,2.03279987]
[1642490791557,38.6853,139.76,139.7,2.03279987]
[1642490791755,27.6974,139.76,139.7,2.03279987]
[1642490792558,24.8354,139.76,139.7,2.03279987]
[1642490793158,24.8354,139.76,139.71,2.03279987]
[1642490793462,27.6974,139.76,139.71,2.03279987]
[1642490793959,2.862,139.76,139.71,2.03279987]
[1642490794159,36.5032506,139.77,139.71,8.03279987]
[1642490794361,0.25,139.75,139.71,8.03279987]
[1642490794958,0.25,139.75,139.71,2.03279987]
[1642490795359,0.25,139.76,139.71,2.03279987]
[1642490795658,13.092,139.78,139.71,2.03279987]
[1642490795858,24.64031944,139.79,139.71,12.60579987]
[1642490796060,24.64031944,139.79,139.71,23.33939987]
[1642490796258,24.64031944,139.79,139.72,0.25]
[1642490796458,24.64031944,139.79,139.73,2.862]
[1642490796661,22.7689,139.79,139.73,44.43273878]
[1642490797059,22.7689,139.79,139.73,55.16463878]
[1642490797259,1.87141944,139.8,139.73,55.16463878]
[1642490797860,1.87141944,139.82,139.73,57.19743865]
[1642490798061,40.78595385,139.82,139.73,63.19743865]
[1642490798261,0.25,139.81,139.73,63.19743865]
[1642490798860,40.78595385,139.82,139.73,63.19743865]
[1642490799061,38.91453441,139.82,139.76,2.03279987]
[1642490799265,38.91453441,139.82,139.76,12.76269987]
[1642490800263,0.25,139.81,139.76,12.76269987]
[1642490801862,38.91453441,139.82,139.76,12.76269987]
[1642490802063,0.25,139.81,139.76,12.76269987]
[1642490802962,38.91453441,139.82,139.76,12.76269987]
[1642490803163,28.6165437,139.83,139.76,12.76269987]
[1642490804165,65.05798811,139.83,139.76,12.76269987]
[1642490804367,0.25,139.82,139.76,12.76269987]
[1642490807474,0.25,139.82,139.76,58.82265921]
[1642490810576,3.6229437,139.83,139.76,58.82265921]
[1642490810777,3.6229437,139.83,139.78,10.7267]
[1642490811175,3.6229437,139.83,139.79,0.25]
[1642490811377,3.6229437,139.83,139.79,3.111]
[1642490812377,3.6229437,139.83,139.8,2.03279987]
[1642490812577,3.6229437,139.83,139.81,39.48703562]
[1642490813577,3.6229437,139.83,139.81,10.7254]
[1642490814777,9.68734364,139.83,139.81,10.7254]
[1642490817296,3.6229437,139.83,139.81,10.7254]
[1642490822823,3.6229437,139.83,139.79,12.75989987]
[1642490823023,3.6229437,139.83,139.79,10.7271]
[1642490828129,3.6229437,139.83,139.79,18.0501]
[1642490828330,1.87141944,139.88,139.81,10.7235]
[1642490828531,1.87141944,139.89,139.81,10.7235]
[1642490828733,1.87141944,139.89,139.82,0.25]
[1642490829133,1.87141944,139.89,139.82,43.00838855]
[1642490829532,50.32621944,139.92,139.82,43.00838855]
[1642490829738,50.32621944,139.92,139.83,2.859]
[1642490830138,50.32621944,139.92,139.84,0.25]
[1642490830637,0.25,139.91,139.84,10.7228]
[1642490830836,3.109,139.91,139.84,16.9728]
[1642490831037,3.109,139.91,139.84,10.9728]
[1642490832239,0.25,139.91,139.84,10.9728]
[1642490832437,0.25,139.91,139.84,16.9728]
[1642490834241,0.25,139.91,139.84,16.7228]
[1642490834741,0.25,139.91,139.84,10.7228]
[1642490835538,2.859,139.9,139.84,10.7228]
[1642490835943,0.25,139.89,139.84,10.7228]
[1642490837264,0.25,139.91,139.84,10.7228]
[1642490840364,53.18521944,139.92,139.84,16.7228]
[1642490841165,26.3343,139.92,139.86,10.7222]
[1642490841365,23.4753,139.92,139.86,10.7222]
[1642490843265,0.25,139.91,139.86,10.7222]
[1642490844365,23.4753,139.92,139.87,0.25]
[1642490844564,0.25,139.91,139.86,10.7222]
[1642490845470,0.25,139.91,139.84,13.5824]
[1642490845671,0.25,139.91,139.84,10.7234]
[1642490846478,0.25,139.91,139.83,2.859]
[1642490846676,0.25,139.91,139.82,10.7247]
[1642490846677,2.859,139.9,139.82,10.7247]
[1642490846877,0.25,139.89,139.82,16.7247]
[1642490848278,0.25,139.9,139.82,16.7247]
[1642490848481,7.30343359,139.88,139.82,16.7247]
[1642490848878,7.30343359,139.88,139.82,10.7247]
[1642490849078,13.30343359,139.88,139.82,10.7247]
[1642490849482,13.30343359,139.88,139.83,0.25]
[1642490854896,13.30343359,139.88,139.83,10.7245]
[1642490861535,6.0,139.88,139.83,10.7245]
[1642490861735,8.86,139.89,139.83,10.7245]
[1642490861934,6.0,139.88,139.83,10.7245]
[1642490862242,0.25,139.88,139.83,10.7245]
[1642490862635,0.25,139.88,139.84,44.37052063]
[1642490862835,0.25,139.88,139.84,10.7237]
[1642490863035,0.25,139.89,139.84,10.7237]
[1642490863238,1.87141944,139.9,139.84,18.8497]
[1642490863440,1.87141944,139.9,139.85,3.109]
[1642490863837,1.87141944,139.9,139.85,9.109]
[1642490864336,1.87141944,139.9,139.86,46.86978824]
[1642490864737,1.87141944,139.9,139.87,0.25]
[1642490864937,1.87141944,139.92,139.88,10.7204]
[1642490865337,1.87141944,139.92,139.89,0.25]
[1642490866341,1.87141944,139.93,139.89,0.25]
[1642490866638,1.87141944,139.93,139.87,2.858]
[1642490866841,2.859,139.92,139.85,2.03279987]
[1642490867540,27.6958,139.92,139.85,2.03279987]
[1642490867842,0.25,139.91,139.84,12.75599987]
[1642490868641,1.87141944,139.91,139.84,10.7232]
[1642490869243,8.08906272,139.9,139.85,0.25]
[1642490869440,8.08906272,139.9,139.85,10.9729]
[1642490869640,8.08906272,139.9,139.85,10.7229]
[1642490869840,1.87141944,139.91,139.85,10.7229]
[1642490870241,0.25,139.9,139.85,10.7229]
[1642490870941,33.54407995,139.9,139.85,10.7229]
[1642490871542,33.54407995,139.9,139.84,0.25]
[1642490872044,33.54407995,139.9,139.83,12.75689987]
[1642490873045,35.41549939,139.9,139.83,10.7241]
[1642490873245,35.41549939,139.9,139.84,0.25]
[1642490879981,2.12141944,139.9,139.84,10.9738]
[1642490880177,2.12141944,139.9,139.84,10.7238]
[1642490880480,1.87141944,139.9,139.84,10.7238]
[1642490880682,1.87141944,139.9,139.85,0.25]
[1642490880878,1.87141944,139.9,139.85,36.25905674]
[1642490881079,1.87141944,139.9,139.86,10.7222]
[1642490881280,1.87141944,139.9,139.87,0.25]
[1642490881580,24.8368,139.92,139.87,0.25]
[1642490881780,1.87141944,139.93,139.87,0.25]
[1642490882078,1.87141944,139.93,139.88,13.5795]
[1642490882278,1.87141944,139.93,139.89,0.25]
[1642490882580,1.87141944,139.93,139.88,2.859]
[1642490882780,1.87141944,139.93,139.85,37.76539987]
[1642490882978,1.87141944,139.93,139.85,43.76539987]
[1642490882979,48.84371087,139.92,139.85,43.76539987]
[1642490883179,73.59761087,139.92,139.85,43.76539987]
[1642490883580,73.59761087,139.92,139.87,10.721]
[1642490883784,0.25,139.91,139.87,10.721]
[1642490887383,0.25,139.91,139.87,16.721]
[1642490887585,0.25,139.91,139.87,10.721]
[1642490887784,0.25,139.91,139.87,16.721]
[1642490887985,0.25,139.91,139.87,10.721]
[1642490891392,4.73041944,139.93,139.87,16.721]
[1642490891588,4.73041944,139.93,139.88,49.64514688]
[1642490891786,1.87141944,139.93,139.89,10.7195]
[1642490892085,1.87141944,139.93,139.89,13.5775]
[1642490892285,1.87141944,139.93,139.9,0.25]
[1642490893086,1.87141944,139.96,139.9,0.25]
[1642490893288,1.87141944,139.96,139.91,13.5746]
[1642490893486,1.87141944,139.96,139.91,20.7646]
[1642490893686,1.87141944,139.96,139.92,0.25]
[1642490893886,1.87141944,139.96,139.93,2.858]
[1642490894287,1.87141944,139.96,139.94,37.58014166]
[1642490894587,1.87141944,139.98,139.95,10.7147]
[1642490895788,2.858,140.02,139.95,10.7147]
[1642490895789,1.87141944,140.0,139.95,10.7147]
[1642490896891,1.87141944,140.0,139.95,16.7147]
[1642490897290,1.87141944,140.0,139.95,10.7147]
[1642490897692,1.87141944,140.0,139.95,16.7147]
[1642490897990,1.87141944,140.0,139.95,10.7147]
[1642490900094,1.87141944,139.99,139.95,10.7147]
[1642490900294,1.87141944,139.99,139.95,16.7147]
[1642490900919,1.87141944,139.99,139.95,10.7147]
[1642490901094,1.87141944,140.0,139.95,16.7147]
[1642490901404,3.107,139.99,139.9,12.26279987]
[1642490901594,3.107,139.99,139.9,2.03279987]
[1642490901797,9.107,139.99,139.9,2.03279987]
[1642490901995,10.97841944,139.99,139.9,2.03279987]
[1642490902198,11.71665786,139.98,139.9,2.03279987]
[1642490902396,3.108,139.97,139.9,2.03279987]
[1642490902596,3.108,139.97,139.9,12.75199987]
[1642490902997,3.108,139.97,139.9,10.7192]
[1642490902998,1.87141944,139.96,139.9,10.7192]
[1642490903296,0.25,139.95,139.9,10.7192]
[1642490904699,0.25,139.95,139.88,13.5781]
[1642490904998,1.87141944,139.95,139.88,13.5781]
[1642490906199,1.87141944,139.95,139.88,19.5781]
[1642490906399,1.87141944,139.95,139.88,13.5781]
[1642490907399,0.25,139.94,139.88,13.5781]
[1642490907600,0.25,139.94,139.87,53.64101686]
[1642490907799,0.25,139.94,139.88,0.25]
[1642490908629,0.25,139.94,139.87,2.858]
[1642490908830,2.859,139.93,139.85,4.89179987]
[1642490909231,0.25,139.92,139.85,10.89179987]
[1642490909434,34.55555462,139.92,139.85,4.89179987]
[1642490909632,34.55555462,139.92,139.85,10.89179987]
[1642490910133,36.42697406,139.92,139.85,8.859]
[1642490910732,2.12141944,139.92,139.85,8.859]
[1642490910934,1.87141944,139.92,139.86,0.25]
[1642490911934,53.09646724,139.95,139.86,0.25]
[1642490911935,1.87141944,139.93,139.86,0.25]
[1642490912333,0.25,139.92,139.86,10.7221]
[1642490912633,0.25,139.92,139.84,4.89179987]
[1642490912833,3.109,139.92,139.85,0.25]
[1642490913936,2.12141944,139.92,139.86,2.859]
[1642490914337,2.12141944,139.92,139.87,0.25]
[1642490914338,1.87141944,139.92,139.87,0.25]
[1642490914538,1.87141944,139.92,139.85,13.089]
[1642490914736,1.87141944,139.92,139.88,10.7203]
[1642490915136,1.87141944,139.92,139.89,0.25]
[1642490915737,1.944e-05,139.92,139.9,10.7191]
[1642490915936,1.944e-05,139.92,139.91,2.858]
[1642490916138,3.71249804,139.95,139.9,13.088]
[1642490916337,48.0701,140.01,139.91,0.25]
[1642490916338,3.71249804,139.99,139.91,0.25]
[1642490916538,3.71249804,139.99,139.92,2.858]
[1642490916939,3.71249804,139.99,139.93,0.25]
[1642490917140,54.64059804,140.01,139.93,10.7169]
[1642490917337,54.64059804,140.01,139.93,10.9669]
[1642490917338,0.25,140.0,139.93,10.9669]
[1642490917638,0.25,140.0,139.94,2.857]
[1642490917937,0.25,140.0,139.92,2.857]
[1642490918138,38.75815908,140.0,139.92,3.107]
[1642490918338,38.75815908,140.0,139.92,2.857]
[1642490918541,44.75815908,140.0,139.92,10.7171]
[1642490919538,44.75815908,140.0,139.9,26.9485]
[1642490919939,48.47065712,140.0,139.9,26.9485]
[1642490920139,42.47065712,140.0,139.9,26.9485]
[1642490920341,42.47065712,140.0,139.91,0.25]
[1642490920843,42.47065712,140.0,139.92,10.7171]
[1642490921040,42.47065712,140.0,139.93,40.81198596]
[1642490922042,38.75815908,140.0,139.93,40.81198596]
[1642490922643,38.75815908,140.0,139.93,10.7168]
[1642490924144,38.75815908,140.0,139.91,10.718]
[1642490924346,38.75815908,140.0,139.91,13.576]
[1642490924946,38.75815908,140.0,139.92,0.25]
[1642490925145,38.75815908,140.0,139.93,10.7163]
[1642490926847,44.75815908,140.0,139.93,10.7163]
[1642490931948,41.90115908,140.0,139.94,2.857]
[1642490932347,41.90115908,140.0,139.94,13.573]
[1642490932547,41.90115908,140.0,139.94,10.716]
[1642490933249,41.65115908,140.0,139.94,10.716]
[1642490934980,0.25,139.99,139.94,10.716]
[1642490936478,35.65115908,140.0,139.94,10.716]
[1642490936678,35.65115908,140.0,139.95,0.25]
[1642490936879,35.65115908,140.0,139.95,10.9654]
[1642490937680,35.65115908,140.0,139.95,10.7154]
[1642490939281,0.25,139.99,139.93,10.7163]
[1642490940282,0.25,139.99,139.91,13.5749]
[1642490940484,2.858,139.98,139.91,13.5749]
[1642490940684,2.858,139.98,139.91,2.857]
[1642490940884,0.25,139.97,139.91,2.857]
[1642490941085,2.858,139.96,139.91,2.857]
[1642490941288,0.25,139.95,139.91,2.857]
[1642490941488,2.858,139.94,139.91,2.857]
[1642490941687,6.06439994,139.93,139.91,2.857]
[1642490941886,6.31439994,139.93,139.91,2.857]
[1642490942485,6.31439994,139.93,139.85,25.00924582]
[1642490942686,6.31439994,139.93,139.85,20.9526]
[1642490943788,2.859,139.92,139.85,26.9526]
[1642490944087,13.2300534,139.95,139.87,10.721]
[1642490944287,19.2300534,139.95,139.87,10.721]
[1642490944890,38.2088534,139.95,139.87,10.721]
[1642490945089,38.2088534,139.95,139.88,0.25]
[1642490945290,0.25,139.94,139.88,0.25]
[1642490945990,0.25,139.94,139.88,50.40469031]
[1642490946191,0.25,139.94,139.88,50.15469031]
[1642490947292,0.25,139.94,139.88,56.15469031]
[1642490949793,2.858,139.96,139.89,0.25]
[1642490949994,37.79052334,139.97,139.9,2.858]
[1642490951198,0.25,139.96,139.9,2.858]
[1642490952400,0.25,139.96,139.88,50.15469031]
[1642490952803,0.25,139.96,139.89,0.25]
[1642490953202,0.25,139.96,139.88,50.15469031]
[1642490954905,0.25,139.96,139.89,0.25]
[1642490955107,0.25,139.96,139.89,10.7195]
[1642490958815,0.25,139.96,139.9,0.25]
[1642490959013,23.0547,139.97,139.91,10.7182]
[1642490959513,2.858,139.99,139.92,0.25]
[1642490959715,3.71249804,140.01,139.94,46.08284862]
[1642490960118,10.23,140.02,139.94,46.08284862]
[1642490960316,16.23,140.02,139.94,46.08284862]
[1642490960517,16.23,140.02,139.94,56.79884862]
[1642490961619,16.23,140.02,139.95,0.25]
[1642490961823,16.23,140.02,139.95,10.9652]
[1642490962921,16.23,140.02,139.96,2.857]
[1642490963927,0.25,140.01,139.96,2.857]
[1642490964126,0.25,140.01,139.95,13.8222]
[1642490964529,0.25,140.02,139.95,13.8222]
[1642490969152,4.64605272,140.01,139.93,2.857]
[1642490969354,0.25,140.0,139.94,0.25]
[1642490970556,0.25,140.0,139.94,10.966]
[1642490972161,0.25,140.0,139.94,0.25]
[1642490973660,0.25,140.0,139.93,13.5739]
[1642490973863,0.25,140.0,139.94,0.25]
[1642490975563,0.25,140.0,139.93,10.7169]
[1642490975966,29.57535272,140.01,139.94,0.25]
[1642490976162,24.9293,140.01,139.94,0.25]
[1642490976663,24.9293,140.01,139.94,10.9661]
[1642490976864,24.9293,140.01,139.95,2.857]
[1642490977265,24.9293,140.01,139.96,0.25]
[1642490991312,30.9293,140.01,139.94,0.25]
[1642490991713,95.9293,140.01,139.94,0.25]
[1642490991914,95.9293,140.01,139.95,2.857]
[1642490992314,95.9293,140.01,139.96,0.25]
[1642490992315,101.9293,140.01,139.96,0.25]
[1642490992717,0.25,140.0,139.95,2.857]
[1642490992917,2.857,139.99,139.91,16.718]
[1642490993117,2.857,139.99,139.91,6.0]
[1642490993319,0.25,139.98,139.9,2.857]
[1642490993524,2.858,139.97,139.88,4.05664582]
[1642490993719,2.858,139.97,139.88,10.05664582]
[1642490993923,0.25,139.96,139.88,4.05664582]
[1642490994123,0.25,139.96,139.88,6.0]
[1642490994520,0.25,139.96,139.88,16.7201]
[1642490994725,0.25,139.96,139.89,0.25]
[1642490995520,0.25,139.96,139.88,2.858]
[1642490996721,2.858,139.95,139.89,10.7198]
[1642490997125,2.858,139.95,139.88,2.858]
[1642490997522,10.64705272,139.95,139.88,2.858]
[1642490997725,71.0,139.94,139.88,2.858]
[1642490997923,2.858,139.93,139.85,10.23]
[1642490998124,2.858,139.93,139.85,64.14430168]
[1642490998325,0.25,139.92,139.86,0.25]
[1642490998525,0.25,139.92,139.86,3.109]
[1642490999325,2.859,139.94,139.86,3.109]
[1642490999525,0.25,139.93,139.86,13.8311]
[1642491000527,2.859,139.95,139.86,19.8311]
[1642491000727,23.0818,139.96,139.86,19.8311]
[1642491001527,23.0818,139.96,139.86,42.3637]
[1642491002128,0.25,139.95,139.86,42.3637]
[1642491003629,23.0818,139.96,139.86,42.3637]
[1642491003835,2.858,139.98,139.86,42.3637]
[1642491004031,23.7261,139.98,139.87,10.23]
[1642491004330,23.7261,139.98,139.91,10.7174]
[1642491004531,23.7261,139.98,139.93,41.48777743]
[1642491004830,0.33873973,139.99,139.93,41.48777743]
[1642491005030,0.33873973,139.99,139.93,47.48777743]
[1642491006532,0.33873973,139.99,139.93,52.20437743]
[1642491008936,0.33873973,139.99,139.93,58.20437743]
[1642491009137,0.33873973,139.99,139.93,52.20437743]
[1642491009437,0.33873973,139.99,139.96,0.44624021]
[1642491009736,6.06439994,139.98,139.96,0.89248042]
[1642491010136,0.33873973,139.99,139.96,0.89248042]
[1642491011837,25.7405,140.0,139.96,0.89248042]
[1642491014175,22.8835,140.0,139.96,0.89248042]
[1642491014372,2.857,139.99,139.96,0.89248042]
[1642491014573,6.06439994,139.98,139.88,7.16364582]
[1642491014774,2.858,139.97,139.88,13.16364582]
[1642491015275,0.25,139.96,139.88,13.16364582]
[1642491015874,0.25,139.96,139.88,8.857]
[1642491016477,2.858,139.95,139.86,26.0381]
[1642491016676,26.55,139.95,139.86,2.858]
[1642491016975,2.03905272,139.94,139.86,2.858]
[1642491017177,2.859,139.93,139.85,2.859]
[1642491017377,0.25,139.92,139.84,4.05664582]
[1642491017578,2.859,139.91,139.84,4.05664582]
[1642491017778,0.25,139.9,139.84,4.05664582]
[1642491017979,2.859,139.89,139.84,4.05664582]
[1642491018178,2.859,139.89,139.81,4.05664582]
[1642491018378,0.25,139.88,139.81,4.05664582]
[1642491018680,2.86,139.87,139.81,4.05664582]
[1642491018878,0.25,139.86,139.81,4.05664582]
[1642491019578,0.25,139.86,139.8,46.80400075]
[1642491019787,0.25,139.86,139.84,0.44624021]
[1642491019980,0.25,139.88,139.84,0.44624021]
[1642491021381,2.86,139.87,139.84,0.44624021]
[1642491021881,6.31439994,139.86,139.84,0.44624021]
[1642491022381,12.31439994,139.86,139.84,0.44624021]
[1642491024882,12.31439994,139.86,139.78,13.5877]
[1642491025082,12.31439994,139.86,139.82,0.44624021]
[1642491028986,12.31439994,139.86,139.78,2.86]
[1642491029187,13.09,139.85,139.78,2.86]
[1642491029386,0.25,139.84,139.78,2.86]
[1642491029585,0.25,139.84,139.78,0.0001]
[1642491029586,2.861,139.83,139.78,0.0001]
[1642491029788,41.07785799,139.82,139.78,0.0001]
[1642491029986,2.861,139.81,139.78,0.0001]
[1642491030187,2.861,139.81,139.76,4.05664582]
[1642491030389,23.0,139.79,139.69,2.861]
[1642491030588,2.862,139.78,139.69,2.861]
[1642491030787,3.112,139.78,139.69,2.861]
[1642491030992,3.112,139.78,139.69,8.861]
[1642491031191,4.74811427,139.77,139.69,8.861]
[1642491031387,0.25,139.76,139.69,8.861]
[1642491031587,6.37,139.76,139.69,8.861]
[1642491032391,6.37,139.76,139.69,2.861]
[1642491032789,6.37,139.76,139.68,13.598]
[1642491033693,0.25,139.76,139.68,19.598]
[1642491035891,0.25,139.76,139.7,2.03836466]
[1642491036293,0.25,139.76,139.7,8.03836466]
[1642491036991,0.25,139.76,139.7,43.36228739]
[1642491037191,3.112,139.76,139.7,2.03836466]
[1642491038997,2.862,139.76,139.69,2.03836466]
[1642491039196,1.91666907,139.78,139.7,2.862]
[1642491039724,1.91666907,139.78,139.7,8.862]
[1642491039896,37.57332765,139.77,139.71,2.03836466]
[1642491040097,2.862,139.76,139.71,2.03836466]
[1642491040296,81.90105272,139.76,139.71,6.466e-05]
[1642491040499,33.0,139.75,139.69,4.07647215]
[1642491040697,73.862,139.74,139.69,4.07647215]
[1642491040897,10.7405,139.73,139.69,4.07647215]
[1642491041099,18.74314461,139.73,139.64,2.862]
[1642491041303,0.25,139.72,139.64,2.47875798]
[1642491042100,0.25,139.72,139.64,13.21785798]
[1642491042701,0.25,139.72,139.65,44.44831877]
[1642491042908,0.25,139.72,139.65,50.44831877]
[1642491043101,0.25,139.72,139.65,61.18671877]
[1642491043500,0.58873973,139.72,139.65,61.18671877]
[1642491045001,0.58873973,139.72,139.65,50.44831877]
[1642491046003,0.58873973,139.72,139.65,6.0]
[1642491046204,0.58873973,139.72,139.64,8.47875798]
[1642491046406,0.58873973,139.72,139.65,0.25]
[1642491046604,0.58873973,139.72,139.64,16.7391]
[1642491047229,0.58873973,139.72,139.65,0.25]
[1642491048331,0.58873973,139.72,139.64,6.0]
[1642491048530,2.863,139.71,139.64,6.0]
[1642491048731,10.90473973,139.72,139.62,19.6033]
[1642491048933,0.25,139.7,139.63,0.25]
[1642491049131,10.90473973,139.72,139.63,0.25]
[1642491049331,35.37083973,139.72,139.63,0.25]
[1642491049530,117.11113973,139.72,139.63,0.25]
[1642491049731,46.11113973,139.72,139.64,4.07797262]
[1642491049933,43.24813973,139.72,139.64,6.94097262]
[1642491050135,43.24813973,139.72,139.64,12.94097262]
[1642491050834,43.24813973,139.72,139.64,8.863]
[1642491052035,2.863,139.71,139.64,8.863]
[1642491052437,0.33873973,139.67,139.65,4.07788701]
[1642491052638,6.06439994,139.66,139.65,4.07788701]
[1642491052837,6.06439994,139.66,139.65,10.07788701]
[1642491053036,0.33873973,139.67,139.65,10.07788701]
[1642491053438,0.33873973,139.67,139.65,6.0]
[1642491053838,6.40313967,139.67,139.62,19.6047]
[1642491054039,6.40313967,139.67,139.63,0.25]
[1642491054437,6.40313967,139.67,139.62,16.7407]
[1642491055239,6.40313967,139.67,139.62,6.0]
[1642491055439,13.12451059,139.66,139.62,6.0]
[1642491055639,13.12451059,139.66,139.63,4.07822406]
[1642491055640,13.37451059,139.66,139.63,4.07822406]
[1642491055939,6.06439994,139.65,139.63,10.07822406]
[1642491056543,14.66539994,139.65,139.63,10.07822406]
[1642491056741,14.66539994,139.65,139.63,6.0]
[1642491057145,14.66539994,139.65,139.62,10.07822406]
[1642491057644,14.66539994,139.65,139.62,6.0]
[1642491057847,14.66539994,139.65,139.6,8.864]
[1642491058044,14.66539994,139.65,139.61,0.25]
[1642491060044,2.864,139.64,139.59,6.08231449]
[1642491060247,32.45146167,139.63,139.59,6.08231449]
[1642491060446,2.865,139.62,139.59,6.08231449]
[1642491060743,3.115,139.62,139.59,6.08231449]
[1642491061245,23.0,139.61,139.52,2.865]
[1642491061445,2.866,139.6,139.51,13.096]
[1642491061647,7.29219611,139.6,139.51,2.866]
[1642491061945,3.116,139.59,139.51,8.98124325]
[1642491062144,0.25,139.59,139.51,8.98124325]
[1642491062345,0.25,139.59,139.52,37.43496266]
[1642491062746,0.25,139.59,139.52,43.43496266]
[1642491062945,2.866,139.61,139.53,0.25]
[1642491062946,0.25,139.6,139.53,0.25]
[1642491063345,44.95817408,139.63,139.53,3.116]
[1642491063544,38.95817408,139.63,139.53,13.863]
[1642491063744,44.95817408,139.63,139.53,19.863]
[1642491064147,38.95817408,139.63,139.53,19.863]
[1642491064346,44.95817408,139.63,139.53,19.863]
[1642491065246,9.116,139.63,139.53,19.863]
[1642491066045,3.116,139.63,139.54,71.0]
[1642491066247,31.42960418,139.66,139.56,10.744]
[1642491066446,31.42960418,139.66,139.57,2.865]
[1642491066645,31.42960418,139.66,139.58,38.0794809]
[1642491066848,31.42960418,139.66,139.58,44.0794809]
[1642491067146,2.865,139.66,139.58,44.0794809]
[1642491067648,0.25,139.65,139.58,44.0794809]
[1642491068246,125.95739958,139.67,139.58,44.0794809]
[1642491068247,0.25,139.66,139.58,44.0794809]
[1642491068648,0.25,139.66,139.58,54.8232809]
[1642491068847,51.79729958,139.67,139.58,54.8232809]
[1642491070347,0.25,139.66,139.58,54.8232809]
[1642491073750,33.03565538,139.66,139.58,54.8232809]
[1642491073951,0.33873973,139.6,139.58,16.7438]
[1642491074150,6.06439994,139.59,139.58,16.7438]
[1642491074350,0.33873973,139.6,139.58,16.9938]
[1642491074553,0.33873973,139.6,139.58,16.7438]
[1642491076553,0.33873973,139.6,139.58,6.0]
[1642491076753,6.40313967,139.6,139.57,8.865]
[1642491076955,6.40313967,139.6,139.57,2.865]
[1642491077157,6.40313967,139.6,139.57,8.865]
[1642491077456,3.3709397,139.6,139.57,8.865]
[1642491078457,3.3709397,139.6,139.57,19.6096]
[1642491078856,3.3709397,139.6,139.57,16.7446]
[1642491079258,0.33873973,139.6,139.57,16.7446]
[1642491080064,0.33873973,139.6,139.57,65.07036927]
[1642491080461,0.33873973,139.6,139.59,10.7418]
[1642491080662,3.973e-05,139.6,139.59,10.7418]
[1642491080862,3.973e-05,139.6,139.59,19.6068]
[1642491081086,3.973e-05,139.6,139.59,16.9918]
[1642491082387,3.973e-05,139.6,139.59,10.9918]